fUST/lending_fUST_20260226
["ID","MTS","AMOUNT","RATE_DAILY","PERIOD"]
[406707570,1772112645810,-3836.25831253,0.0001925,2]
[406707571,1772112645819,-3274.0,0.00019282,2]
[406707572,1772112645829,-151.0,0.000194,2]
[406707573,1772112645838,-748.22363395,0.00019465,2]
[406707574,1772112645847,-1346.80254111,0.00019465,2]
[406707575,1772112645858,-2394.31562864,0.00019465,2]
[406707576,1772112645868,-3741.11816976,0.00019526,2]
[406707577,1772112645878,-500.0,0.00019529,2]
[406707578,1772112645888,-744.71502317,0.00019574,2]
[406707580,1772112645898,-10000.0,0.000196,2]
[406707581,1772112645908,-1163.6013571,0.00019611,2]
[406707582,1772112645918,-3812.8755871,0.00019611,2]
[406707583,1772112645928,-387.867119,0.00019611,2]
[406707584,1772112645938,-65161.4732002,0.00019611,2]
[406707585,1772112645948,-1421.1895713,0.00019611,2]
[406707586,1772112645957,-487.0,0.00019611,2]
[406707587,1772112645969,-487.0,0.00019611,2]
[406707588,1772112645978,-663.5,0.00019611,2]
[406707589,1772112645988,-182.087683,0.00019694,7]
[406707590,1772112645997,-500.0,0.00019765,2]
[406707592,1772112646007,-500.0,0.00019798,2]
[406707593,1772112646017,-500.0,0.00019798,2]
[406707594,1772112646027,-500.0,0.00019798,2]
[406707595,1772112646036,-500.0,0.00019798,2]
[406707596,1772112646046,-500.0,0.00019798,2]
[406707597,1772112646055,-500.0,0.00019798,2]
[406707598,1772112646065,-500.0,0.00019798,2]
[406707599,1772112646074,-5702.9736269,0.000198,2]
[406707600,1772112646084,-281.15355178,0.00019899,2]
[406707601,1772112646094,-11746.25879135,0.000199,2]
[406707602,1772112646103,-207.59697118,0.00019988,2]
[406707603,1772112646112,-1634.20927733,0.00019988,2]
[406707604,1772112646122,-373.67454813,0.00019988,2]
[406707605,1772112646132,-22889.60792719,0.0002,2]
[406707606,1772112646141,-203.988619,0.0002,2]
[406707607,1772112646151,-1380.20107225,0.0002,3]
[406707608,1772112646160,-814.43409379,0.0002,120]
[406707609,1772112646170,-286349.5805892,0.0002,2]
[406707611,1772112646869,-23924.07310326,0.0002,2]
[406707612,1772112646881,-2948.24531268,0.0002,2]
[406707613,1772112647007,-59110.78223013,0.0002,2]
[406707614,1772112651579,500.0,0.00013539,2]
[406707615,1772112651619,500.0,0.00013539,2]
[406707616,1772112651652,500.0,0.00013539,2]
[406707617,1772112651690,205.94953568,0.00013539,2]
[406707618,1772112982142,-559.0785,0.00041226,120]
[406707619,1772112982169,-559.0785,0.00041226,120]
[406707620,1772112982196,-559.0785,0.00041226,120]
[406707621,1772112982224,-559.0785,0.00041226,120]
[406707622,1772112982251,-559.0785,0.00041226,120]
[406707623,1772112982277,-559.0785,0.00041226,120]
[406707624,1772112982305,-559.0785,0.00041226,120]
[406707625,1772112982330,-559.0785,0.00041226,120]
[406707626,1772112982356,-526.2944,0.00041226,120]
[406707627,1772112982380,-526.2944,0.00041226,120]
[406707628,1772112982405,-526.2944,0.00041226,120]
[406707629,1772112982429,-3000.0,0.00041226,120]
[406707630,1772112982454,-649.0548,0.00041226,120]
[406707631,1772112982481,-1854.89162856,0.00041226,30]
[406707632,1772112982506,-291.44194651,0.00041226,120]
[406707633,1772112982532,-1025.17984911,0.00041226,120]
[406707634,1772112982561,-973.03764123,0.00041226,120]
[406707635,1772112982588,-1095.94267692,0.00041226,60]
[406707636,1772112982613,-734.53328717,0.00041226,120]
[406707637,1772112982638,-522.6620531,0.00041226,30]
[406707638,1772112982663,-157.51794053,0.00041226,30]
[406707639,1772112982687,-533.36564872,0.00041226,30]
[406707640,1772112982711,-337.40539003,0.00041226,120]
[406707641,1772112982735,-1070.88545447,0.00041226,120]
[406707642,1772112982760,-454.09456583,0.00041226,120]
[406707643,1772112982783,-938.41703369,0.00041226,120]
[406707644,1772112982808,-247.37371116,0.00041226,30]
[406707645,1772112982833,-228.62798398,0.00041226,120]
[406707646,1772112982859,-554.82088792,0.00041226,120]
[406707647,1772112982884,-335.4468369,0.00041226,120]
[406707648,1772112982910,-188.5274558,0.00041226,30]
[406707649,1772112982935,-152.37439433,0.00041226,30]
[406707650,1772112982959,-578.63473177,0.00041226,120]
[406707651,1772112982984,-209.22157956,0.00041226,120]
[406707652,1772112983009,-172.03103868,0.00041226,120]
[406707653,1772112983035,-1052.66979828,0.00041226,120]
[406707654,1772112983060,-1000.0,0.00041226,30]
[406707655,1772112983086,-374.83259586,0.00041226,120]
[406707656,1772112983114,-364.6272874,0.00041226,120]
[406707657,1772112983141,-180.64853599,0.00041226,120]
[406707658,1772112983167,-1048.4857391,0.00041226,60]
[406707659,1772112983193,-560.72701774,0.00041226,120]
[406707660,1772112983219,-516.86324619,0.00041226,120]
[406707661,1772112983244,-472.87181709,0.00041226,30]
[406707662,1772112983269,-483.55986012,0.00041226,120]
[406707663,1772112983293,-475.55315539,0.00041226,60]
[406707664,1772112983317,-165.63257899,0.00041226,120]
[406707665,1772112983342,-1031.7339378,0.00041226,30]
[406707666,1772112983365,-344.77991383,0.00041226,30]
[406707667,1772112983389,-159.56316456,0.00041226,30]
[406707668,1772112983414,-1023.72854021,0.00041226,120]
[406707669,1772112983439,-1018.36158765,0.00041226,120]
[406707670,1772112983477,-200.0,0.00041226,120]
[406707671,1772112983503,-161.56084224,0.00041226,120]
[406707672,1772112983529,-1117.64884734,0.00041226,120]
[406707673,1772112983798,-999.999999,0.00041226,120]
[406707674,1772112983825,-1614.80199663,0.00041226,30]
[406707675,1772112983853,-284.12077803,0.00041226,30]
[406707676,1772112983878,-2841.56331793,0.00041226,30]
[406707677,1772112983904,-2057.78108989,0.00041226,120]
[406707678,1772112983934,-785.21374342,0.00041226,30]
[406707679,1772112983960,-188.19289851,0.00041226,30]
[406707680,1772112983985,-538.81930264,0.00041226,30]
[406707681,1772112984011,-1001.69210863,0.00041226,30]
[406707682,1772112984037,-1136.512153,0.00041226,120]
[406707683,1772112984063,-1238.64462169,0.00041226,60]
[406707684,1772112984088,-202.51027316,0.00041226,120]
[406707685,1772112984113,-2689.89286345,0.00041226,30]
[406707686,1772112984138,-1150.3290881,0.00041226,120]
[406707687,1772112984164,-619.60077382,0.00041226,30]
[406707688,1772112984194,-275.37900043,0.00041226,30]
[406707689,1772112984218,-159.14741903,0.00041226,30]
[406707690,1772112984244,-1528.0,0.00041226,60]
[406707691,1772112984273,-3401.24982623,0.00041226,90]
[406707692,1772112984299,-1300.944011,0.00041226,120]
[406707693,1772112984327,-4000.0,0.00041226,120]
[406707694,1772112984354,-4671.38667818,0.00041226,30]
[406707695,1772112984382,-2263.30207501,0.00041226,120]
[406707696,1772112984410,-5479.46575837,0.00041226,30]
[406707697,1772112984447,-10670.70026366,0.00041226,120]
[406707698,1772112984473,-2602.49114981,0.00041226,120]
[406707699,1772112984498,-1577.0830596,0.00041226,30]
[406707700,1772112984526,-2510.45583341,0.00041226,30]
[406707701,1772112984558,-1251.13837591,0.00041226,30]
[406707702,1772112984584,-2363.89201224,0.00041226,30]
[406707703,1772112984613,-1833.33288282,0.00041226,120]
[406707704,1772112984641,-140680.65450962,0.00041226,120]
[406707705,1772112984668,-3115.72469269,0.00041226,120]
[406707706,1772112984696,-1907.16831558,0.00041226,36]
[406707707,1772112984726,-2300.0,0.00041226,120]
[406707708,1772112984752,-3272.83032692,0.00041226,120]
[406707709,1772112984777,-1174.38706465,0.00041226,120]
[406707710,1772112984804,-1449.20944151,0.00041226,120]
[406707711,1772112984830,-1946.66390654,0.00041226,30]
[406707712,1772112984857,-2783.3506837,0.00041226,120]
[406707713,1772112984887,-1163.44449763,0.00041226,120]
[406707714,1772112984919,-1529.20998946,0.00041226,120]
[406707715,1772112984970,-2072.83219075,0.00041226,120]
[406707716,1772112985004,-1602.93085736,0.00041226,120]
[406707717,1772112985029,-1964.25750371,0.00041226,60]
[406707718,1772112985054,-1248.90158009,0.00041226,30]
[406707719,1772112985080,-2232.72948369,0.00041226,120]
[406707720,1772112985104,-2116.52669928,0.00041226,120]
[406707721,1772112985133,-6978.41089731,0.00041226,30]
[406707722,1772112985168,-3253.47446455,0.00041226,30]
[406707723,1772112985197,-1594.73648207,0.00041226,30]
[406707724,1772112985223,-1926.18108075,0.00041226,120]
[406707725,1772112985250,-5661.04335152,0.00041226,30]
[406707726,1772112985277,-1867.13307531,0.00041226,120]
[406707727,1772112985302,-927619.00714549,0.00041226,45]
[406707728,1772112985330,-4310.74281663,0.00041226,30]
[406707729,1772112985355,-2641.85565885,0.00041226,120]
[406707730,1772112985383,-1232.87734703,0.00041226,60]
[406707731,1772112985407,-2002.80689828,0.00041226,30]
[406707732,1772112985443,-2072.47935428,0.00041226,120]
[406707733,1772112985469,-2049.36027078,0.00041226,120]
[406707734,1772112985494,-4501.65516207,0.00041226,120]
[406707735,1772112985520,-2825.59206463,0.00041226,30]
[406707736,1772112985553,-3343.79270166,0.00041226,33]
[406707737,1772112985579,-2901.62837225,0.00041226,31]
[406707738,1772112985613,-3690.30249004,0.00041226,30]
[406707739,1772112985648,-6406.8889708,0.00041226,30]
[406707740,1772112985678,-2460.795143,0.00041226,60]
[406707741,1772112985704,-3222.40216384,0.00041226,120]
[406707742,1772112985729,-10050.55509921,0.00041226,120]
[406707743,1772112985755,-500.0,0.00041226,120]
[406707744,1772112985783,-1630749.86,0.00041226,120]
[406707745,1772112985810,-593.9048411,0.00041226,120]
[406707746,1772112985838,-95633.20085002,0.00041226,120]
[406707747,1772112991183,-850060.93052995,0.00041226,120]
[406707748,1772112991210,-10354.0,0.00041226,30]
[406707749,1772112991242,-5000.0,0.00041226,120]
[406707750,1772112991265,-5000.0,0.00041226,120]
[406707751,1772112991288,-300.0,0.00041226,31]
[406707752,1772112991313,-2000.0,0.00041226,120]
[406707753,1772112991337,-237787.0,0.00041226,120]
[406707754,1772112991361,-380.0,0.00041226,60]
[406707755,1772112991386,-30947.0,0.00041226,120]
[406707756,1772112991411,-3383.487,0.00041226,120]
[406707757,1772112991438,-16298.3388874,0.00041226,120]
[406707758,1772112991463,-2000.0,0.00041226,120]
[406707759,1772112991487,-2916.0,0.00041226,120]
[406707760,1772112991513,-1512.8197007,0.00041226,120]
[406707761,1772112991538,-391.0,0.00041226,120]
[406707762,1772112991563,-1561.50111221,0.00041226,120]
[406707763,1772112991587,-155.2527947,0.00041226,30]
[406707764,1772112991612,-8390.0,0.00041226,120]
[406707765,1772112991635,-426.9864921,0.00041226,120]
[406707766,1772112991658,-1000.0,0.00041226,120]
[406707767,1772112991682,-1000.0,0.00041226,120]
[406707768,1772112991707,-1000.0,0.00041226,120]
[406707769,1772112991913,-1000.0,0.00041226,120]
[406707770,1772112991939,-1000.0,0.00041226,120]
[406707771,1772112991966,-1000.0,0.00041226,120]
[406707772,1772112991991,-1000.0,0.00041226,120]
[406707773,1772112992016,-1000.0,0.00041226,120]
[406707774,1772112992042,-1000.0,0.00041226,120]
[406707775,1772112992068,-1454.95710642,0.00041226,120]
[406707776,1772112992095,-653.0,0.00041226,120]
[406707777,1772112992121,-13512.64,0.00041226,120]
[406707778,1772112992148,-5039.40526304,0.00041226,120]
[406707779,1772112992174,-2319.99450195,0.00041226,30]
[406707780,1772112992199,-310.64280815,0.00041226,120]
[406707781,1772112992224,-2407.11683698,0.00041226,30]
[406707782,1772112992249,-267.73263152,0.00041226,120]
[406707783,1772112992273,-299.45,0.00041226,120]
[406707784,1772112992298,-878.0,0.00041226,120]
[406707785,1772112992322,-1214.59844698,0.00041226,120]
[406707786,1772112992348,-1750.00131576,0.00041226,120]
[406707787,1772112992373,-267.73131575,0.00041226,120]
[406707788,1772112992397,-19381.36246716,0.00041226,120]
[406707789,1772112992423,-2000.0,0.00041226,120]
[406707790,1772112992448,-2000.0,0.00041226,120]
[406707791,1772112992474,-2000.0,0.00041226,120]
[406707792,1772112992498,-2000.0,0.00041226,120]
[406707793,1772112992523,-2000.0,0.00041226,120]
[406707794,1772112992551,-2000.0,0.00041226,120]
[406707795,1772112992577,-2000.0,0.00041226,120]
[406707796,1772112992602,-2000.0,0.00041226,120]
[406707797,1772112992630,-2000.0,0.00041226,120]
[406707798,1772112992654,-2000.0,0.00041226,120]
[406707799,1772112992679,-2000.0,0.00041226,120]
[406707800,1772112992704,-4620.0,0.00041226,30]
[406707801,1772112992731,-2758.0,0.00041226,120]
[406707802,1772112992757,-750.6195,0.00041226,120]
[406707803,1772112992782,-750.6195,0.00041226,120]
[406707804,1772112992807,-21207.66694875,0.00041226,120]
[406707805,1772112992833,-959.11453913,0.00041226,60]
[406707806,1772112992857,-910.0,0.00041226,120]
[406707807,1772112992882,-153.19421947,0.00041226,120]
[406707808,1772112992908,-215.8729392,0.00041226,120]
[406707809,1772112992934,-1099.01997636,0.00041226,120]
[406707810,1772112992961,-215.8729392,0.00041226,120]
[406707811,1772112992989,-1099.01997636,0.00041226,120]
[406707812,1772112993016,-1099.01997636,0.00041226,120]
[406707813,1772112993042,-156.49372763,0.00041226,120]
[406707814,1772112993067,-244.28754087,0.00041226,120]
[406707815,1772112993091,-200.47562225,0.00041226,120]
[406707816,1772112993116,-156.49372763,0.00041226,120]
[406707817,1772112993141,-200.47562225,0.00041226,120]
[406707818,1772112993167,-156.49372763,0.00041226,120]
[406707819,1772112993192,-156.49372763,0.00041226,120]
[406707820,1772112993216,-156.49372763,0.00041226,120]
[406707821,1772112993242,-787.5,0.00041226,120]
[406707822,1772112993267,-2625.69,0.00041226,30]
[406707823,1772112993293,-1458.35265799,0.00041226,120]
[406707824,1772112993318,-153.0186447,0.00041226,120]
[406707825,1772112993343,-156.49372763,0.00041226,120]
[406707826,1772112993366,-334.17598343,0.00041226,120]
[406707827,1772112993391,-1458.35265799,0.00041226,120]
[406707828,1772112993419,-153.0186447,0.00041226,120]
[406707829,1772112993444,-156.49372763,0.00041226,120]
[406707830,1772112993469,-334.17598343,0.00041226,120]
[406707831,1772112993495,-1458.35265799,0.00041226,120]
[406707832,1772112993520,-334.17598343,0.00041226,120]
[406707833,1772112993552,-1458.35265799,0.00041226,120]
[406707834,1772112993579,-153.0186447,0.00041226,120]
[406707835,1772112993606,-334.17598343,0.00041226,120]
[406707836,1772112993631,-1458.35265799,0.00041226,120]
[406707837,1772112993655,-334.17598343,0.00041226,120]
[406707838,1772112993682,-1458.35265799,0.00041226,120]
[406707839,1772112993707,-1458.35265799,0.00041226,120]
[406707840,1772112993734,-1458.35265799,0.00041226,120]
[406707841,1772112993760,-1458.35265799,0.00041226,120]
[406707842,1772112993786,-6105.83039596,0.00041226,120]
[406707843,1772112993811,-3211.0,0.00041226,120]
[406707844,1772112993837,-10195.45285389,0.00041226,66]
[406707845,1772112993864,-1020.84686059,0.00041226,120]
[406707846,1772112993893,-167.08799171,0.00041226,120]
[406707847,1772112993920,-1020.84686059,0.00041226,120]
[406707848,1772112993947,-1020.84686059,0.00041226,120]
[406707849,1772112993973,-19859.349939,0.00041226,120]
[406707850,1772112994000,-9160.60008719,0.00041226,120]
[406707851,1772112994026,-9458.09210676,0.00041226,120]
[406707852,1772112994052,-6713.55266465,0.00041226,120]
[406707853,1772112994079,-26300.0,0.00041226,30]
[406707854,1772112994106,-6719.28590002,0.00041226,120]
[406707855,1772112994133,-278.47998618,0.00041226,120]
[406707856,1772112994323,-918.76217453,0.00041226,120]
[406707857,1772112994352,-278.47998618,0.00041226,120]
[406707858,1772112994379,-918.76217453,0.00041226,120]
[406707859,1772112994406,-278.47998618,0.00041226,120]
[406707860,1772112994435,-918.76217453,0.00041226,120]
[406707861,1772112994461,-918.76217453,0.00041226,120]
[406707862,1772112994488,-918.76217453,0.00041226,120]
[406707863,1772112994515,-918.76217453,0.00041226,120]
[406707864,1772112994542,-918.76217453,0.00041226,120]
[406707865,1772112994571,-918.76217453,0.00041226,120]
[406707866,1772112994597,-918.76217453,0.00041226,120]
[406707867,1772112994625,-918.76217453,0.00041226,120]
[406707868,1772112994653,-918.76217453,0.00041226,120]
[406707869,1772112994679,-918.76217453,0.00041226,120]
[406707870,1772112994706,-918.76217453,0.00041226,120]
[406707871,1772112994733,-918.76217453,0.00041226,120]
[406707872,1772112994760,-918.76217453,0.00041226,120]
[406707873,1772112994786,-3938.17959383,0.00041226,120]
[406707874,1772112994811,-9148.64484775,0.00041226,120]
[406707875,1772112994836,-13398.04549958,0.00041226,120]
[406707876,1772112994862,-2500.0,0.00041226,120]
[406707877,1772112994888,-5745.79328715,0.00041226,60]
[406707878,1772112994915,-6381.89546105,0.00041226,120]
[406707879,1772112994941,-40207.8371662,0.00041226,120]
[406707880,1772112994968,-7532.405003,0.00041226,120]
[406707881,1772112994993,-8069.75512907,0.00041226,30]
[406707882,1772112995021,-5410.38020101,0.00041226,30]
[406707883,1772112995048,-193601.16263565,0.00041226,120]
[406707884,1772112995076,-27270.11781084,0.00041226,60]
[406707885,1772112995105,-94422.51741018,0.00041226,120]
[406707886,1772112995133,-5281.50607876,0.00041226,120]
[406707887,1772112995161,-10046.01976349,0.00041226,120]
[406707888,1772112995189,-5003.40360683,0.00041226,120]
[406707889,1772112995219,-5843.75124873,0.00041226,120]
[406707890,1772112995248,-12954.615158,0.00041226,30]
[406707891,1772112995275,-10000.0,0.00041226,120]
[406707892,1772112995302,-12296.5765172,0.00041226,120]
[406707893,1772112995330,-18915.38775346,0.00041226,120]
[406707894,1772112995358,-32788.07603534,0.00041226,120]
[406707895,1772112995386,-7366.10955527,0.00041226,120]
[406707896,1772112995411,-7000.0,0.00041226,60]
[406707897,1772112995449,-6366.85007399,0.00041226,60]
[406707898,1772112995496,-7104.82426178,0.00041226,30]
[406707899,1772112995547,-7324.2710093,0.00041226,120]
[406707900,1772112995594,-11041.69447512,0.00041226,30]
[406707901,1772112995639,-18716.76044226,0.00041226,120]
[406707902,1772112995686,-15543.77306817,0.00041226,120]
[406707903,1772112995731,-10627.12384853,0.00041226,30]
[406707904,1772112995770,-4172.20603281,0.00041226,120]
[406707905,1772112995815,-9811.93331769,0.00041226,30]
[406707906,1772112995854,-20418.60339614,0.00041226,30]
[406707907,1772112995895,-50702.10411107,0.00041226,120]
[406707908,1772112995935,-22364.83224499,0.00041226,30]
[406707909,1772112995978,-4320.07031785,0.00041226,30]
[406707910,1772112996021,-5326.48703771,0.00041226,120]
[406707911,1772112996061,-6049.83058815,0.00041226,120]
[406707912,1772112996101,-6734.0530352,0.00041226,120]
[406707913,1772112996143,-9818.11053727,0.00041226,90]
[406707914,1772112996188,-5032.93837656,0.00041226,120]
[406707915,1772112996228,-8451.38244887,0.00041226,31]
[406707916,1772112996268,-13926.24757849,0.00041226,30]
[406707917,1772112996308,-8382.97425704,0.00041226,30]
[406707918,1772112996351,-182.57601557,0.00041226,120]
[406707919,1772112996389,-244.28754087,0.00041226,120]
[406707920,1772112996430,-152.93085733,0.00041226,120]
[406707921,1772112996470,-200.47562225,0.00041226,120]
[406707922,1772112996510,-182.57601557,0.00041226,120]
[406707923,1772112996554,-200.47562225,0.00041226,120]
[406707924,1772112996594,-182.57601557,0.00041226,120]
[406707925,1772112996635,-152.93085732,0.00041226,120]
[406707926,1772112996677,-9006.52544906,0.00041226,120]
[406707927,1772112996715,-3632.52579632,0.00041226,120]
[406707928,1772112996754,-6000.0,0.00041226,120]
[406707929,1772112996792,-4200.0,0.00041226,120]
[406707930,1772112996828,-6899.9689,0.00041226,120]
[406707931,1772112996865,-2000.0,0.00041226,120]
[406707932,1772112996905,-1792.05634695,0.00041226,120]
[406707933,1772112996945,-182.57601556,0.00041226,120]
[406707934,1772112996985,-200.47562225,0.00041226,120]
[406707935,1772112997023,-182.57601556,0.00041226,120]
[406707936,1772112997062,-200.47562225,0.00041226,120]
[406707937,1772112997102,-244.28754087,0.00041226,120]
[406707938,1772112997141,-182.57601556,0.00041226,120]
[406707939,1772112997181,-2115.3005327,0.00041226,120]
[406707940,1772112997461,-544.34801913,0.00041226,120]
[406707941,1772112997487,-200.47562225,0.00041226,120]
[406707942,1772112997514,-198.47343209,0.00041226,120]
[406707943,1772112997542,-327.6720066,0.00041226,120]
[406707944,1772112997567,-193.98680395,0.00041226,120]
[406707945,1772112997593,-328.63682802,0.00041226,120]
[406707946,1772112997619,-544.34801913,0.00041226,120]
[406707947,1772112997644,-2115.3005327,0.00041226,120]
[406707948,1772112997669,-200.47562225,0.00041226,120]
[406707949,1772112997695,-327.6720066,0.00041226,120]
[406707950,1772112997721,-198.47343209,0.00041226,120]
[406707951,1772112997746,-328.63682802,0.00041226,120]
[406707952,1772112997771,-544.34801913,0.00041226,120]
[406707953,1772112997796,-2115.3005327,0.00041226,120]
[406707954,1772112997821,-327.6720066,0.00041226,120]
[406707955,1772112997846,-328.63682802,0.00041226,120]
[406707956,1772112997873,-198.47343209,0.00041226,120]
[406707957,1772112997898,-544.34801913,0.00041226,120]
[406707958,1772112997922,-200.47562225,0.00041226,120]
[406707959,1772112997947,-2115.3005327,0.00041226,120]
[406707960,1772112997973,-328.63682802,0.00041226,120]
[406707961,1772112998000,-198.47343209,0.00041226,120]
[406707962,1772112998028,-544.34801913,0.00041226,120]
[406707963,1772112998054,-200.47562225,0.00041226,120]
[406707964,1772112998081,-2115.3005327,0.00041226,120]
[406707965,1772112998106,-328.63682802,0.00041226,120]
[406707966,1772112998133,-198.47343209,0.00041226,120]
[406707967,1772112998159,-544.34801913,0.00041226,120]
[406707968,1772112998184,-200.47562225,0.00041226,120]
[406707969,1772112998210,-2115.3005327,0.00041226,120]
[406707970,1772112998237,-328.63682802,0.00041226,120]
[406707971,1772112998262,-544.34801913,0.00041226,120]
[406707972,1772112998288,-200.47562225,0.00041226,120]
[406707973,1772112998312,-328.63682802,0.00041226,120]
[406707974,1772112998337,-544.34801913,0.00041226,120]
[406707975,1772112998362,-200.47562225,0.00041226,120]
[406707976,1772112998387,-328.63682802,0.00041226,120]
[406707977,1772112998428,-544.34801913,0.00041226,120]
[406707978,1772112998463,-200.47562225,0.00041226,120]
[406707979,1772112998500,-328.63682802,0.00041226,120]
[406707980,1772112998539,-544.34801913,0.00041226,120]
[406707981,1772112998583,-328.63682802,0.00041226,120]
[406707982,1772112998623,-544.34801913,0.00041226,120]
[406707983,1772112998661,-544.34801913,0.00041226,120]
[406707984,1772112998699,-5000.0,0.00041226,120]
[406707985,1772112998734,-4765.0,0.00041226,120]
[406707986,1772112998769,-5672.0,0.00041226,120]
[406707987,1772112998805,-3672.0,0.00041226,120]
[406707988,1772112998840,-5562.0,0.00041226,120]
[406707989,1772112998876,-12562.0,0.00041226,120]
[406707990,1772112998914,-2245.0,0.00041226,120]
[406707991,1772112998951,-3761.95969266,0.00041226,120]
[406707992,1772112998988,-299.20141795,0.00041226,120]
[406707993,1772112999024,-354.05046607,0.00041226,120]
[406707994,1772112999059,-261.73665093,0.00041226,120]
[406707995,1772112999096,-805.42479864,0.00041226,120]
[406707996,1772112999131,-250.64098558,0.00041226,120]
[406707997,1772112999167,-278.30454667,0.00041226,120]
[406707998,1772112999205,-3761.95969266,0.00041226,120]
[406707999,1772112999242,-805.42479864,0.00041226,120]
[406708000,1772112999277,-354.05046607,0.00041226,120]
[406708001,1772112999313,-250.64098558,0.00041226,120]
[406708002,1772112999348,-278.30454667,0.00041226,120]
[406708003,1772112999385,-3761.95969266,0.00041226,120]
[406708004,1772112999422,-805.42479864,0.00041226,120]
[406708005,1772112999458,-354.05046607,0.00041226,120]
[406708006,1772112999494,-250.64098558,0.00041226,120]
[406708007,1772112999531,-278.30454667,0.00041226,120]
[406708008,1772112999571,-354.05046607,0.00041226,120]
[406708009,1772112999614,-805.42479864,0.00041226,120]
[406708010,1772112999652,-250.64098558,0.00041226,120]
[406708011,1772112999690,-3761.95969266,0.00041226,120]
[406708012,1772112999726,-805.42479864,0.00041226,120]
[406708013,1772112999763,-250.64098558,0.00041226,120]
[406708014,1772112999802,-3761.95969266,0.00041226,120]
[406708015,1772112999839,-354.05046607,0.00041226,120]
[406708016,1772112999881,-805.42479864,0.00041226,120]
[406708017,1772112999921,-3761.95969266,0.00041226,120]
[406708018,1772112999960,-250.64098558,0.00041226,120]
[406708019,1772112999999,-354.05046607,0.00041226,120]
[406708020,1772113000037,-805.42479864,0.00041226,120]
[406708021,1772113000074,-3761.95969266,0.00041226,120]
[406708022,1772113000110,-250.64098558,0.00041226,120]
[406708023,1772113000147,-354.05046607,0.00041226,120]
[406708024,1772113000333,-3761.95969266,0.00041226,120]
[406708025,1772113000371,-250.64098558,0.00041226,120]
[406708026,1772113000408,-805.42479864,0.00041226,120]
[406708027,1772113000445,-3761.95969266,0.00041226,120]
[406708028,1772113000481,-805.42479864,0.00041226,120]
[406708029,1772113000518,-354.05046607,0.00041226,120]
[406708030,1772113000557,-3761.95969266,0.00041226,120]
[406708031,1772113000595,-805.42479864,0.00041226,120]
[406708032,1772113000632,-354.05046607,0.00041226,120]
[406708033,1772113000669,-3761.95969266,0.00041226,120]
[406708034,1772113000707,-805.42479864,0.00041226,120]
[406708035,1772113000744,-354.05046607,0.00041226,120]
[406708036,1772113000782,-805.42479864,0.00041226,120]
[406708037,1772113000818,-354.05046607,0.00041226,120]
[406708038,1772113000857,-3761.95969266,0.00041226,120]
[406708039,1772113000896,-354.05046607,0.00041226,120]
[406708040,1772113000934,-3761.95969266,0.00041226,120]
[406708041,1772113000976,-805.42479864,0.00041226,120]
[406708042,1772113001015,-3761.95969266,0.00041226,120]
[406708043,1772113001052,-354.05046607,0.00041226,120]
[406708044,1772113001091,-805.42479864,0.00041226,120]
[406708045,1772113001130,-3761.95969266,0.00041226,120]
[406708046,1772113001169,-354.05046607,0.00041226,120]
[406708047,1772113001209,-805.42479864,0.00041226,120]
[406708048,1772113001248,-3761.95969266,0.00041226,120]
[406708049,1772113001289,-805.42479864,0.00041226,120]
[406708050,1772113001328,-354.05046607,0.00041226,120]
[406708051,1772113001367,-3761.95969266,0.00041226,120]
[406708052,1772113001406,-805.42479864,0.00041226,120]
[406708053,1772113001443,-3761.95969266,0.00041226,120]
[406708054,1772113001482,-805.42479864,0.00041226,120]
[406708055,1772113001520,-3761.95969266,0.00041226,120]
[406708056,1772113001561,-805.42479864,0.00041226,120]
[406708057,1772113001601,-3761.95969266,0.00041226,120]
[406708058,1772113001640,-805.42479864,0.00041226,120]
[406708059,1772113001676,-3761.95969266,0.00041226,120]
[406708060,1772113001713,-805.42479864,0.00041226,120]
[406708061,1772113001749,-3761.95969266,0.00041226,120]
[406708062,1772113001786,-805.42479864,0.00041226,120]
[406708063,1772113001822,-3761.95969266,0.00041226,120]
[406708064,1772113001859,-805.42479864,0.00041226,120]
[406708065,1772113001896,-3761.95969266,0.00041226,120]
[406708066,1772113001938,-805.42479864,0.00041226,120]
[406708067,1772113001978,-3761.95969266,0.00041226,120]
[406708068,1772113002018,-805.42479864,0.00041226,120]
[406708069,1772113002058,-3761.95969266,0.00041226,120]
[406708070,1772113002097,-805.42479864,0.00041226,120]
[406708071,1772113002137,-3761.95969266,0.00041226,120]
[406708072,1772113002179,-805.42479864,0.00041226,120]